[Event "January 9 Early 2024"]
[Site "https://www.chess.com"]
[Date "2024.01.11"]
[Round "3"]
[White "Bryakin, Mikhail"]
[Black "Olcayoz, Gizem"]
[Result "1-0"]
[Board "40"]
[TimeControl "180+1"]
[WhiteFideId "4165314"]
[BlackFideId "6301444"]
[WhiteElo "2850"]
[BlackElo "2002"]
[WhiteTeam "SRB"]
[BlackTeam "TUR"]
[WhiteClock "0:02:31"]
[BlackClock "0:00:07"]

1. g3 {[%clk 0:03:00]}  f5 {[%clk 0:02:59]} 2. Bg2 {[%clk 0:03:01]}  Nf6 {[%clk 0:02:59]} 3. d3 {[%clk 0:03:01]}  d6 {[%clk 0:03:00]} 4. Nd2 {[%clk 0:03:02]}  e5 {[%clk 0:03:00]} 5. e4 {[%clk 0:03:03]}  Nc6 {[%clk 0:02:59]} 6. Ne2 {[%clk 0:03:03]}  Be7 {[%clk 0:02:59]} 7. O-O {[%clk 0:03:03]}  O-O {[%clk 0:02:59]} 8. exf5 {[%clk 0:03:04]}  Bxf5 {[%clk 0:02:59]} 9. f4 {[%clk 0:03:04]}  Qd7 {[%clk 0:02:29]} 10. Nc4 {[%clk 0:03:02]}  Bh3 {[%clk 0:02:20]} 11. Ne3 {[%clk 0:02:58]}  Bxg2 {[%clk 0:02:12]} 12. Kxg2 {[%clk 0:02:57]}  Rae8 {[%clk 0:02:03]} 13. f5 {[%clk 0:02:53]}  d5 {[%clk 0:01:56]} 14. d4 {[%clk 0:02:53]}  Nxd4 {[%clk 0:01:41]} 15. Nxd4 {[%clk 0:02:54]}  exd4 {[%clk 0:01:41]} 16. Qxd4 {[%clk 0:02:53]}  c5 {[%clk 0:01:41]} 17. Qf4 {[%clk 0:02:49]}  d4 {[%clk 0:01:38]} 18. Ng4 {[%clk 0:02:47]}  Bd6 {[%clk 0:01:21]} 19. Qf3 {[%clk 0:02:45]}  Nxg4 {[%clk 0:01:12]} 20. Qxg4 {[%clk 0:02:46]}  Re5 {[%clk 0:00:34]} 21. Bf4 {[%clk 0:02:39]}  Rd5 {[%clk 0:00:25]} 22. Bxd6 {[%clk 0:02:38]}  Rxd6 {[%clk 0:00:23]} 23. Rae1 {[%clk 0:02:37]}  Rdf6 {[%clk 0:00:23]} 24. Re5 {[%clk 0:02:35]}  b6 {[%clk 0:00:19]} 25. Qe4 {[%clk 0:02:35]}  h6 {[%clk 0:00:13]} 26. g4 {[%clk 0:02:35]}  Qb5 {[%clk 0:00:13]} 27. b3 {[%clk 0:02:34]}  Qa5 {[%clk 0:00:12]} 28. a4 {[%clk 0:02:34]}  Qd2+ {[%clk 0:00:12]} 29. Rf2 {[%clk 0:02:35]}  Qg5 {[%clk 0:00:10]} 30. Kg3 {[%clk 0:02:35]}  h5 {[%clk 0:00:10]} 31. h4 {[%clk 0:02:35]}  Qxg4+ {[%clk 0:00:08]} 32. Qxg4 {[%clk 0:02:36]}  hxg4 {[%clk 0:00:09]} 33. Kxg4 {[%clk 0:02:37]}  g6 {[%clk 0:00:08]} 34. Kg5 {[%clk 0:02:36]}  Rxf5+ {[%clk 0:00:08]} 35. Rfxf5 {[%clk 0:02:35]}  Rxf5+ {[%clk 0:00:08]} 36. Rxf5 {[%clk 0:02:35]}  gxf5 {[%clk 0:00:08]} 37. Kxf5 {[%clk 0:02:35]}  Kg7 {[%clk 0:00:08]} 38. Ke5 {[%clk 0:02:30]}  a6 {[%clk 0:00:09]} 39. Kd5 {[%clk 0:02:30]}  Kg6 {[%clk 0:00:07]} 40. Kc6 {[%clk 0:02:30]}  Kf5 {[%clk 0:00:06]} 41. Kxb6 {[%clk 0:02:30]}  Kg4 {[%clk 0:00:07]} 42. Kxc5 {[%clk 0:02:31]}  Kxh4 {[%clk 0:00:07]} 43. Kxd4 {[%clk 0:02:31]} 1-0

[Event "January 9 Early 2024"]
[Site "https://www.chess.com"]
[Date "2024.01.11"]
[Round "3"]
[White "La Villa Rivas, Marlon Javier"]
[Black "Viana, Valeria"]
[Result "0-1"]
[Board "41"]
[TimeControl "180+1"]
[WhiteFideId "3519546"]
[BlackFideId "8407100"]
[WhiteElo "2335"]
[BlackElo "2103"]
[WhiteTeam "CUB"]
[BlackTeam "HON"]
[WhiteClock "0:01:52"]
[BlackClock "0:00:13"]

1. e4 {[%clk 0:02:51]}  c6 {[%clk 0:02:58]} 2. c4 {[%clk 0:02:50]}  d5 {[%clk 0:02:55]} 3. cxd5 {[%clk 0:02:50]}  cxd5 {[%clk 0:02:55]} 4. exd5 {[%clk 0:02:51]}  Qxd5 {[%clk 0:02:54]} 5. Nc3 {[%clk 0:02:51]}  Qa5 {[%clk 0:02:53]} 6. d4 {[%clk 0:02:50]}  Nf6 {[%clk 0:02:50]} 7. h3 {[%clk 0:02:45]}  e6 {[%clk 0:02:40]} 8. Nf3 {[%clk 0:02:45]}  Nc6 {[%clk 0:02:37]} 9. Bd3 {[%clk 0:02:44]}  Be7 {[%clk 0:02:34]} 10. O-O {[%clk 0:02:43]}  O-O {[%clk 0:02:33]} 11. a3 {[%clk 0:02:43]}  a6 {[%clk 0:02:26]} 12. Bg5 {[%clk 0:02:41]}  h6 {[%clk 0:02:19]} 13. Bf4 {[%clk 0:02:34]}  Qd8 {[%clk 0:02:05]} 14. Bc2 {[%clk 0:02:33]}  Bd6 {[%clk 0:01:57]} 15. Ne5 {[%clk 0:02:28]}  Qc7 {[%clk 0:01:35]} 16. Re1 {[%clk 0:02:27]}  b5 {[%clk 0:01:22]} 17. Qf3 {[%clk 0:02:24]}  Bb7 {[%clk 0:01:18]} 18. Qg3 {[%clk 0:02:18]}  Kh8 {[%clk 0:00:57]} 19. Rad1 {[%clk 0:02:17]}  Rad8 {[%clk 0:00:50]} 20. Qh4 {[%clk 0:02:16]}  Ng8 {[%clk 0:00:32]} 21. Ne4 {[%clk 0:02:07]}  Nxd4 {[%clk 0:00:20]} 22. Nxd6 {[%clk 0:02:03]}  Rxd6 {[%clk 0:00:15]} 23. Nxf7+ {[%clk 0:02:00]}  Qxf7 {[%clk 0:00:15]} 24. Bxd6 {[%clk 0:01:59]}  Nxc2 {[%clk 0:00:14]} 25. Bxf8 {[%clk 0:01:56]}  Nxe1 {[%clk 0:00:14]} 26. Bxg7+ {[%clk 0:01:51]}  Qxg7 {[%clk 0:00:13]} 27. Rxe1 {[%clk 0:01:52]}  Qxg2# {[%clk 0:00:13]} 0-1

[Event "January 9 Early 2024"]
[Site "https://www.chess.com"]
[Date "2024.01.11"]
[Round "3"]
[White "Martinez Alcantara, Jose Eduardo"]
[Black "Skvortsov, Andrei"]
[Result "1-0"]
[Board "43"]
[TimeControl "180+1"]
[WhiteFideId "3805662"]
[BlackFideId "24108600"]
[WhiteElo "3032"]
[BlackElo "2667"]
[WhiteTeam "PER"]
[BlackTeam "MNE"]
[WhiteClock "0:01:55"]
[BlackClock "0:00:48"]

1. e4 {[%clk 0:03:00]}  d5 {[%clk 0:02:59]} 2. exd5 {[%clk 0:03:01]}  Qxd5 {[%clk 0:03:00]} 3. Nc3 {[%clk 0:03:01]}  Qe5+ {[%clk 0:03:00]} 4. Be2 {[%clk 0:03:01]}  Bg4 {[%clk 0:03:00]} 5. d4 {[%clk 0:03:00]}  Bxe2 {[%clk 0:03:01]} 6. Ngxe2 {[%clk 0:03:01]}  Qa5 {[%clk 0:03:01]} 7. Qd3 {[%clk 0:03:01]}  e6 {[%clk 0:02:59]} 8. O-O {[%clk 0:03:01]}  Nf6 {[%clk 0:02:59]} 9. Ne4 {[%clk 0:03:00]}  Nxe4 {[%clk 0:02:55]} 10. Qxe4 {[%clk 0:03:01]}  Qd5 {[%clk 0:02:55]} 11. Qg4 {[%clk 0:02:58]}  Nc6 {[%clk 0:02:43]} 12. c3 {[%clk 0:02:58]}  O-O-O {[%clk 0:02:41]} 13. Be3 {[%clk 0:02:58]}  h5 {[%clk 0:02:40]} 14. Qg5 {[%clk 0:02:56]}  Be7 {[%clk 0:02:36]} 15. Qxd5 {[%clk 0:02:56]}  exd5 {[%clk 0:02:36]} 16. Nf4 {[%clk 0:02:56]}  g6 {[%clk 0:02:35]} 17. Rfe1 {[%clk 0:02:56]}  Bf6 {[%clk 0:02:33]} 18. Nd3 {[%clk 0:02:54]}  Ne7 {[%clk 0:02:30]} 19. Bf4 {[%clk 0:02:53]}  Nf5 {[%clk 0:02:29]} 20. Be5 {[%clk 0:02:54]}  Bxe5 {[%clk 0:02:29]} 21. Nxe5 {[%clk 0:02:55]}  Nd6 {[%clk 0:02:26]} 22. f3 {[%clk 0:02:53]}  Rhe8 {[%clk 0:02:25]} 23. Kf2 {[%clk 0:02:54]}  Re6 {[%clk 0:02:24]} 24. Nxf7 {[%clk 0:02:48]}  Rxe1 {[%clk 0:02:21]} 25. Nxd6+ {[%clk 0:02:48]}  Rxd6 {[%clk 0:02:22]} 26. Rxe1 {[%clk 0:02:49]}  Kd7 {[%clk 0:02:20]} 27. h4 {[%clk 0:02:46]}  Ra6 {[%clk 0:02:18]} 28. a3 {[%clk 0:02:43]}  Rb6 {[%clk 0:02:18]} 29. Re2 {[%clk 0:02:43]}  a5 {[%clk 0:02:18]} 30. g4 {[%clk 0:02:44]}  a4 {[%clk 0:02:18]} 31. Kg3 {[%clk 0:02:44]}  Re6 {[%clk 0:02:03]} 32. Rxe6 {[%clk 0:01:57]}  Kxe6 {[%clk 0:02:04]} 33. f4 {[%clk 0:01:58]}  hxg4 {[%clk 0:00:58]} 34. Kxg4 {[%clk 0:01:59]}  Kf6 {[%clk 0:00:58]} 35. f5 {[%clk 0:01:59]}  gxf5+ {[%clk 0:00:57]} 36. Kf4 {[%clk 0:02:00]}  Kg6 {[%clk 0:00:54]} 37. h5+ {[%clk 0:02:00]}  Kxh5 {[%clk 0:00:52]} 38. Kxf5 {[%clk 0:02:01]}  c6 {[%clk 0:00:52]} 39. Ke6 {[%clk 0:01:50]}  Kg4 {[%clk 0:00:53]} 40. Kd6 {[%clk 0:01:51]}  Kf4 {[%clk 0:00:53]} 41. Kc7 {[%clk 0:01:52]}  Ke4 {[%clk 0:00:54]} 42. Kxb7 {[%clk 0:01:52]}  Kd3 {[%clk 0:00:53]} 43. Kxc6 {[%clk 0:01:53]}  Kc2 {[%clk 0:00:54]} 44. Kb5 {[%clk 0:01:53]}  Kxb2 {[%clk 0:00:54]} 45. Kb4 {[%clk 0:01:53]}  Kc2 {[%clk 0:00:52]} 46. c4 {[%clk 0:01:54]}  dxc4 {[%clk 0:00:48]} 47. Kxc4 {[%clk 0:01:55]}  Kb2 {[%clk 0:00:48]} 48. Kb4 {[%clk 0:01:55]} 1-0

[Event "January 9 Early 2024"]
[Site "https://www.chess.com"]
[Date "2024.01.11"]
[Round "3"]
[White "Kokoszczynski, Jan"]
[Black "Fernandez Garcia, Gumersindo"]
[Result "0-1"]
[Board "44"]
[TimeControl "180+1"]
[WhiteFideId "1174460"]
[BlackFideId "24516740"]
[WhiteElo "2566"]
[BlackElo "2371"]
[WhiteTeam "POL"]
[BlackTeam "ESP"]
[WhiteClock "0:01:00"]
[BlackClock "0:01:03"]

1. d4 {[%clk 0:03:00]}  Nf6 {[%clk 0:02:57]} 2. Bg5 {[%clk 0:02:59]}  e6 {[%clk 0:02:54]} 3. e4 {[%clk 0:02:59]}  c5 {[%clk 0:02:53]} 4. Nc3 {[%clk 0:02:32]}  cxd4 {[%clk 0:02:47]} 5. Qxd4 {[%clk 0:02:32]}  Nc6 {[%clk 0:02:47]} 6. Nb5 {[%clk 0:02:22]}  Nxd4 {[%clk 0:02:40]} 7. Nxd4 {[%clk 0:02:16]}  Qa5+ {[%clk 0:02:34]} 8. Bd2 {[%clk 0:02:16]}  Qe5 {[%clk 0:02:34]} 9. Be3 {[%clk 0:01:56]}  Nxe4 {[%clk 0:02:12]} 10. Ngf3 {[%clk 0:01:56]}  Qa5+ {[%clk 0:02:11]} 11. c3 {[%clk 0:01:56]}  d5 {[%clk 0:02:09]} 12. Bd3 {[%clk 0:01:54]}  Bd7 {[%clk 0:02:06]} 13. O-O {[%clk 0:01:54]}  Be7 {[%clk 0:02:06]} 14. b4 {[%clk 0:01:54]}  Qd8 {[%clk 0:02:05]} 15. Rac1 {[%clk 0:01:41]}  Rc8 {[%clk 0:02:02]} 16. c4 {[%clk 0:01:42]}  O-O {[%clk 0:01:59]} 17. a3 {[%clk 0:01:41]}  Bf6 {[%clk 0:01:56]} 18. cxd5 {[%clk 0:01:39]}  exd5 {[%clk 0:01:57]} 19. Rcd1 {[%clk 0:01:38]}  Re8 {[%clk 0:01:47]} 20. h3 {[%clk 0:01:37]}  a6 {[%clk 0:01:43]} 21. Rfe1 {[%clk 0:01:34]}  Rc3 {[%clk 0:01:40]} 22. Bb1 {[%clk 0:01:17]}  Rxa3 {[%clk 0:01:35]} 23. Bf4 {[%clk 0:01:14]}  Qc8 {[%clk 0:01:25]} 24. Rc1 {[%clk 0:01:14]}  Rc3 {[%clk 0:01:20]} 25. Rcd1 {[%clk 0:01:14]}  h6 {[%clk 0:01:17]} 26. Re2 {[%clk 0:01:10]}  b6 {[%clk 0:01:10]} 27. Be3 {[%clk 0:01:10]}  a5 {[%clk 0:01:08]} 28. bxa5 {[%clk 0:01:10]}  bxa5 {[%clk 0:01:09]} 29. Ba2 {[%clk 0:01:10]}  Be6 {[%clk 0:01:07]} 30. Nb5 {[%clk 0:01:03]}  Rc2 {[%clk 0:01:04]} 31. Nbd4 {[%clk 0:00:59]}  Rxe2 {[%clk 0:01:03]} 32. Nxe2 {[%clk 0:01:00]}  Qc2 {[%clk 0:01:03]} 0-1

[Event "January 9 Early 2024"]
[Site "https://www.chess.com"]
[Date "2024.01.11"]
[Round "3"]
[White "Skuhala, Barbara"]
[Black "Andrews, Todd"]
[Result "1-0"]
[Board "45"]
[TimeControl "180+1"]
[WhiteFideId "14605465"]
[BlackFideId "2012456"]
[WhiteElo "2291"]
[BlackElo "2480"]
[WhiteTeam "SLO"]
[BlackTeam "USA"]
[WhiteClock "0:01:25"]
[BlackClock "0:00:51"]

1. e4 {[%clk 0:03:00]}  e6 {[%clk 0:02:56]} 2. d4 {[%clk 0:02:58]}  d5 {[%clk 0:02:56]} 3. Nc3 {[%clk 0:02:57]}  Bb4 {[%clk 0:02:56]} 4. e5 {[%clk 0:02:54]}  c5 {[%clk 0:02:57]} 5. a3 {[%clk 0:02:50]}  Bxc3+ {[%clk 0:02:57]} 6. bxc3 {[%clk 0:02:49]}  Ne7 {[%clk 0:02:58]} 7. Qg4 {[%clk 0:02:48]}  Qc7 {[%clk 0:02:59]} 8. Qxg7 {[%clk 0:02:48]}  Rg8 {[%clk 0:02:59]} 9. Qxh7 {[%clk 0:02:48]}  cxd4 {[%clk 0:03:00]} 10. Ne2 {[%clk 0:02:48]}  Nbc6 {[%clk 0:03:00]} 11. f4 {[%clk 0:02:48]}  dxc3 {[%clk 0:03:00]} 12. h3 {[%clk 0:02:48]}  d4 {[%clk 0:02:57]} 13. Qd3 {[%clk 0:02:47]}  b6 {[%clk 0:02:57]} 14. Nxd4 {[%clk 0:02:46]}  Nxd4 {[%clk 0:02:57]} 15. Qxd4 {[%clk 0:02:43]}  Bb7 {[%clk 0:02:56]} 16. Bb5+ {[%clk 0:02:42]}  Nc6 {[%clk 0:02:47]} 17. g4 {[%clk 0:02:39]}  a6 {[%clk 0:02:45]} 18. Bxc6+ {[%clk 0:02:39]}  Qxc6 {[%clk 0:02:44]} 19. Rg1 {[%clk 0:02:38]}  Rd8 {[%clk 0:02:43]} 20. Qe3 {[%clk 0:02:31]}  Qa4 {[%clk 0:02:18]} 21. Qe2 {[%clk 0:02:27]}  Rh8 {[%clk 0:02:10]} 22. Rg3 {[%clk 0:02:23]}  Qd4 {[%clk 0:01:52]} 23. Be3 {[%clk 0:02:19]}  Qe4 {[%clk 0:01:50]} 24. Bxb6 {[%clk 0:02:02]}  Qh1+ {[%clk 0:01:35]} 25. Qf1 {[%clk 0:02:01]}  Qe4+ {[%clk 0:01:23]} 26. Qe2 {[%clk 0:01:50]}  Qh1+ {[%clk 0:01:23]} 27. Rg1 {[%clk 0:01:49]}  Qxh3 {[%clk 0:01:19]} 28. Bxd8 {[%clk 0:01:49]}  Kxd8 {[%clk 0:01:14]} 29. O-O-O+ {[%clk 0:01:46]}  Kc8 {[%clk 0:01:12]} 30. Rd3 {[%clk 0:01:37]}  Qh6 {[%clk 0:01:09]} 31. Rxc3+ {[%clk 0:01:37]}  Kb8 {[%clk 0:01:09]} 32. Qe3 {[%clk 0:01:35]}  Rd8 {[%clk 0:01:01]} 33. Rd1 {[%clk 0:01:31]}  Rxd1+ {[%clk 0:01:01]} 34. Kxd1 {[%clk 0:01:26]}  Qh1+ {[%clk 0:01:01]} 35. Kd2 {[%clk 0:01:27]}  Qg2+ {[%clk 0:01:00]} 36. Kc1 {[%clk 0:01:27]}  Qxg4 {[%clk 0:00:55]} 37. Qd4 {[%clk 0:01:26]}  Qf3 {[%clk 0:00:51]} 38. Rxf3 {[%clk 0:01:25]} 1-0

[Event "January 9 Early 2024"]
[Site "https://www.chess.com"]
[Date "2024.01.11"]
[Round "3"]
[White "Ingebretsen, Jens E"]
[Black "Skaric, Djuro"]
[Result "1-0"]
[Board "47"]
[TimeControl "180+1"]
[WhiteFideId "1522965"]
[BlackFideId "934569"]
[WhiteElo "2602"]
[BlackElo "2291"]
[WhiteTeam "NOR"]
[BlackTeam "SRB"]
[WhiteClock "0:01:49"]
[BlackClock "0:00:06"]

1. e4 {[%clk 0:03:00]}  d6 {[%clk 0:03:00]} 2. d4 {[%clk 0:03:00]}  g6 {[%clk 0:03:01]} 3. Bc4 {[%clk 0:03:00]}  Bg7 {[%clk 0:03:01]} 4. Nf3 {[%clk 0:03:01]}  Nf6 {[%clk 0:03:01]} 5. Qe2 {[%clk 0:03:01]}  O-O {[%clk 0:03:01]} 6. e5 {[%clk 0:03:00]}  Nfd7 {[%clk 0:03:01]} 7. O-O {[%clk 0:02:59]}  Nb6 {[%clk 0:02:55]} 8. Bb3 {[%clk 0:02:59]}  Nc6 {[%clk 0:02:53]} 9. Rd1 {[%clk 0:02:58]}  Bg4 {[%clk 0:02:52]} 10. Nc3 {[%clk 0:02:37]}  Bxf3 {[%clk 0:02:48]} 11. Qxf3 {[%clk 0:02:36]}  dxe5 {[%clk 0:02:48]} 12. dxe5 {[%clk 0:02:29]}  Nxe5 {[%clk 0:02:48]} 13. Qxb7 {[%clk 0:02:21]}  Qc8 {[%clk 0:02:30]} 14. Qe4 {[%clk 0:02:21]}  c5 {[%clk 0:02:23]} 15. Nd5 {[%clk 0:02:18]}  Re8 {[%clk 0:02:18]} 16. Bf4 {[%clk 0:02:17]}  c4 {[%clk 0:02:13]} 17. Bxe5 {[%clk 0:02:15]}  Nxd5 {[%clk 0:02:00]} 18. Ba4 {[%clk 0:02:09]}  Nb6 {[%clk 0:00:53]} 19. Bxe8 {[%clk 0:01:50]}  Qxe8 {[%clk 0:00:41]} 20. Bxg7 {[%clk 0:01:50]}  Kxg7 {[%clk 0:00:41]} 21. a4 {[%clk 0:01:50]}  Rc8 {[%clk 0:00:39]} 22. a5 {[%clk 0:01:49]}  Nd7 {[%clk 0:00:38]} 23. Qd4+ {[%clk 0:01:48]}  Nf6 {[%clk 0:00:34]} 24. Qxa7 {[%clk 0:01:48]}  Qb5 {[%clk 0:00:29]} 25. a6 {[%clk 0:01:47]}  Qxb2 {[%clk 0:00:15]} 26. Qb7 {[%clk 0:01:45]}  Qxb7 {[%clk 0:00:11]} 27. axb7 {[%clk 0:01:46]}  Rb8 {[%clk 0:00:11]} 28. Rdb1 {[%clk 0:01:47]}  Nd7 {[%clk 0:00:09]} 29. Ra8 {[%clk 0:01:47]}  Kf6 {[%clk 0:00:06]} 30. Rxb8 {[%clk 0:01:48]}  Nxb8 {[%clk 0:00:06]} 31. Ra1 {[%clk 0:01:48]}  Ke6 {[%clk 0:00:06]} 32. Ra8 {[%clk 0:01:49]} 1-0

[Event "January 9 Early 2024"]
[Site "https://www.chess.com"]
[Date "2024.01.11"]
[Round "3"]
[White "Filippova, Margarita"]
[Black "Mirza, Diana"]
[Result "1-0"]
[Board "48"]
[TimeControl "180+1"]
[WhiteFideId "34199680"]
[BlackFideId "2503999"]
[WhiteElo "2346"]
[BlackElo "2007"]
[WhiteTeam "RUS"]
[BlackTeam "IRL"]
[WhiteClock "0:01:38"]
[BlackClock "0:00:20"]

1. e4 {[%clk 0:03:00]}  c5 {[%clk 0:02:55]} 2. Nf3 {[%clk 0:02:58]}  e6 {[%clk 0:02:51]} 3. c3 {[%clk 0:02:56]}  Nf6 {[%clk 0:02:51]} 4. e5 {[%clk 0:02:55]}  Nd5 {[%clk 0:02:52]} 5. d4 {[%clk 0:02:55]}  cxd4 {[%clk 0:02:52]} 6. Qxd4 {[%clk 0:02:56]}  d6 {[%clk 0:02:53]} 7. Bb5+ {[%clk 0:02:55]}  Bd7 {[%clk 0:02:49]} 8. a4 {[%clk 0:02:45]}  Nc6 {[%clk 0:02:33]} 9. Qe4 {[%clk 0:02:43]}  dxe5 {[%clk 0:02:21]} 10. Nxe5 {[%clk 0:02:40]}  Nxe5 {[%clk 0:02:12]} 11. Qxe5 {[%clk 0:02:40]}  Bxb5 {[%clk 0:02:10]} 12. axb5 {[%clk 0:02:37]}  Qd6 {[%clk 0:02:11]} 13. Qe2 {[%clk 0:02:35]}  Nf4 {[%clk 0:02:03]} 14. Bxf4 {[%clk 0:02:35]}  Qxf4 {[%clk 0:02:04]} 15. O-O {[%clk 0:02:34]}  Bd6 {[%clk 0:02:03]} 16. g3 {[%clk 0:02:34]}  Qh6 {[%clk 0:02:03]} 17. Rd1 {[%clk 0:02:32]}  Bc5 {[%clk 0:01:41]} 18. Nd2 {[%clk 0:02:15]}  O-O {[%clk 0:01:34]} 19. Ne4 {[%clk 0:02:12]}  Be7 {[%clk 0:01:29]} 20. Rd7 {[%clk 0:02:11]}  f5 {[%clk 0:01:03]} 21. Rxe7 {[%clk 0:02:04]}  f4 {[%clk 0:01:03]} 22. Rd1 {[%clk 0:01:58]}  f3 {[%clk 0:01:02]} 23. Qf1 {[%clk 0:01:58]}  Rfd8 {[%clk 0:00:58]} 24. Red7 {[%clk 0:01:53]}  Rxd7 {[%clk 0:00:47]} 25. Rxd7 {[%clk 0:01:54]}  e5 {[%clk 0:00:47]} 26. h4 {[%clk 0:01:52]}  Qe6 {[%clk 0:00:44]} 27. Qd1 {[%clk 0:01:48]}  Rf8 {[%clk 0:00:40]} 28. Ng5 {[%clk 0:01:46]}  Qg4 {[%clk 0:00:29]} 29. Qd5+ {[%clk 0:01:41]}  Kh8 {[%clk 0:00:26]} 30. Rf7 {[%clk 0:01:40]}  Rc8 {[%clk 0:00:20]} 31. Qxf3 {[%clk 0:01:38]} 1-0

[Event "January 9 Early 2024"]
[Site "https://www.chess.com"]
[Date "2024.01.11"]
[Round "3"]
[White "Davidson, Kevin"]
[Black "Christiansen, Johan-Sebastian"]
[Result "0-1"]
[Board "49"]
[TimeControl "180+1"]
[WhiteFideId "2056810"]
[BlackFideId "1512668"]
[WhiteElo "2517"]
[BlackElo "2887"]
[WhiteTeam "USA"]
[BlackTeam "NOR"]
[WhiteClock "0:00:19"]
[BlackClock "0:01:32"]

1. e4 {[%clk 0:03:00]}  e5 {[%clk 0:03:00]} 2. Nf3 {[%clk 0:03:00]}  Nc6 {[%clk 0:03:01]} 3. Bb5 {[%clk 0:03:00]}  f5 {[%clk 0:03:01]} 4. Nc3 {[%clk 0:02:58]}  fxe4 {[%clk 0:03:02]} 5. Nxe4 {[%clk 0:02:58]}  d5 {[%clk 0:03:02]} 6. Nxe5 {[%clk 0:02:57]}  dxe4 {[%clk 0:03:03]} 7. Nxc6 {[%clk 0:02:57]}  Qd5 {[%clk 0:03:04]} 8. c4 {[%clk 0:02:52]}  Qd6 {[%clk 0:03:04]} 9. Nxa7+ {[%clk 0:02:30]}  Bd7 {[%clk 0:03:04]} 10. Qh5+ {[%clk 0:02:13]}  g6 {[%clk 0:03:04]} 11. Bxd7+ {[%clk 0:02:12]}  Qxd7 {[%clk 0:03:05]} 12. Qe5+ {[%clk 0:02:12]}  Kf7 {[%clk 0:03:06]} 13. Nb5 {[%clk 0:02:05]}  c6 {[%clk 0:03:06]} 14. Qxh8 {[%clk 0:01:43]}  Nf6 {[%clk 0:03:06]} 15. Nc3 {[%clk 0:01:21]}  Re8 {[%clk 0:03:06]} 16. O-O {[%clk 0:01:17]}  Bc5 {[%clk 0:03:04]} 17. Qxe8+ {[%clk 0:01:16]}  Qxe8 {[%clk 0:03:05]} 18. d4 {[%clk 0:01:10]}  exd3 {[%clk 0:03:02]} 19. Bf4 {[%clk 0:01:05]}  Qe6 {[%clk 0:02:48]} 20. b3 {[%clk 0:01:00]}  Qf5 {[%clk 0:02:42]} 21. Be3 {[%clk 0:00:51]}  Bxe3 {[%clk 0:02:42]} 22. fxe3 {[%clk 0:00:52]}  Qe5 {[%clk 0:02:42]} 23. Rac1 {[%clk 0:00:40]}  Qxe3+ {[%clk 0:02:35]} 24. Kh1 {[%clk 0:00:37]}  Kg7 {[%clk 0:02:23]} 25. Rcd1 {[%clk 0:00:32]}  Ng4 {[%clk 0:02:04]} 26. Rf3 {[%clk 0:00:27]}  Qd4 {[%clk 0:01:41]} 27. Rdxd3 {[%clk 0:00:21]}  Nf2+ {[%clk 0:01:41]} 28. Rxf2 {[%clk 0:00:19]}  Qxf2 {[%clk 0:01:32]} 0-1

[Event "January 9 Early 2024"]
[Site "https://www.chess.com"]
[Date "2024.01.11"]
[Round "3"]
[White "Kazakouski, Valery"]
[Black "Tabuenca Mendataurigoitia, Daniel"]
[Result "1-0"]
[Board "50"]
[TimeControl "180+1"]
[WhiteFideId "13507443"]
[BlackFideId "24563617"]
[WhiteElo "2842"]
[BlackElo "2561"]
[WhiteTeam "LTU"]
[BlackTeam "ESP"]
[WhiteClock "0:01:54"]
[BlackClock "0:00:02"]

1. Nf3 {[%clk 0:02:58]}  d6 {[%clk 0:02:56]} 2. d4 {[%clk 0:02:58]}  g6 {[%clk 0:02:54]} 3. g3 {[%clk 0:02:58]}  Bg7 {[%clk 0:02:53]} 4. Bg2 {[%clk 0:02:58]}  Nf6 {[%clk 0:02:53]} 5. O-O {[%clk 0:02:58]}  O-O {[%clk 0:02:53]} 6. c4 {[%clk 0:02:59]}  Nbd7 {[%clk 0:02:52]} 7. Nc3 {[%clk 0:02:59]}  e5 {[%clk 0:02:52]} 8. e4 {[%clk 0:02:59]}  exd4 {[%clk 0:02:48]} 9. Nxd4 {[%clk 0:03:00]}  c6 {[%clk 0:02:48]} 10. h3 {[%clk 0:02:59]}  a5 {[%clk 0:02:47]} 11. Bf4 {[%clk 0:02:58]}  Nc5 {[%clk 0:02:46]} 12. Re1 {[%clk 0:02:57]}  Re8 {[%clk 0:02:40]} 13. Qc2 {[%clk 0:02:49]}  Nh5 {[%clk 0:02:31]} 14. Be3 {[%clk 0:02:49]}  Ne6 {[%clk 0:02:30]} 15. Nde2 {[%clk 0:02:46]}  Qc7 {[%clk 0:02:21]} 16. Rad1 {[%clk 0:02:46]}  b6 {[%clk 0:02:14]} 17. f4 {[%clk 0:02:34]}  Nc5 {[%clk 0:02:01]} 18. Bd4 {[%clk 0:02:23]}  a4 {[%clk 0:01:42]} 19. Bxg7 {[%clk 0:02:20]}  Nxg7 {[%clk 0:01:39]} 20. Qd2 {[%clk 0:02:17]}  Ba6 {[%clk 0:01:16]} 21. Qxd6 {[%clk 0:02:16]}  Qxd6 {[%clk 0:01:11]} 22. Rxd6 {[%clk 0:02:17]}  Bxc4 {[%clk 0:01:07]} 23. Rxc6 {[%clk 0:02:18]}  Nd3 {[%clk 0:00:48]} 24. Rb1 {[%clk 0:02:11]}  b5 {[%clk 0:00:27]} 25. b3 {[%clk 0:02:11]}  axb3 {[%clk 0:00:21]} 26. axb3 {[%clk 0:02:12]}  Nb4 {[%clk 0:00:21]} 27. Rb6 {[%clk 0:02:04]}  Bd3 {[%clk 0:00:18]} 28. Rb2 {[%clk 0:01:59]}  Ra1+ {[%clk 0:00:13]} 29. Kh2 {[%clk 0:02:00]}  f5 {[%clk 0:00:09]} 30. e5 {[%clk 0:01:59]}  Re1 {[%clk 0:00:08]} 31. Nd4 {[%clk 0:01:56]}  Rd8 {[%clk 0:00:04]} 32. Ndxb5 {[%clk 0:01:55]}  Bxb5 {[%clk 0:00:03]} 33. Rxb5 {[%clk 0:01:55]}  Nd3 {[%clk 0:00:03]} 34. Rd2 {[%clk 0:01:55]}  Rc1 {[%clk 0:00:02]} 35. Nd5 {[%clk 0:01:54]} 1-0